Cogmind - Beta 17 *** ADVENTURER MODE // 2026.07.08 @ 23:21:58 Player: smidge Result: Self-destructed Performance ------------- Evolutions (8) 4000 Regions Visited (13) 2600 Robots Destroyed (68) 340 Value Destroyed (2113) 2113 Prototype IDs (27) 540 Alien Tech Used (0) 0 Bonus (1000) 1000 TOTAL SCORE: 10593 Bonus ------- Hacked Protovariant 500 Scanned by Researcher 500 Cogmind --------- Core Integrity 1242/1450 Matter 216/300 Energy 170/170 System Corruption 19% Temperature Cool (0) Movement Flying (315) Ox4 Location -2/Testing Parts ------- > --- POWER (2) -------- Light Antimatter Reactor > --- PROPULSION (7) --- Xenon Bombardment Thruster Cooled Impulse Thruster > --- UTILITY (12) ----- Advanced Power Amplifier Advanced Heat Sink Experimental Terrain Scan Processor Microactuators ECM Suite Light Regenerative Plating Light Regenerative Plating Improved Hacking Suite Experimental Hacking Suite Improved System Shield > --- WEAPON (2) ------- Greatsword > --- INVENTORY (5) ---- Light Antimatter Reactor Light Quantum Reactor Improved Hardlight Generator Heavy Rocket Launcher Peak State ------------ > --- POWER ------------ Light Antimatter Reactor Light Antimatter Reactor > --- PROPULSION ------- Xenon Bombardment Thruster Xenon Bombardment Thruster Xenon Bombardment Thruster Xenon Bombardment Thruster Field Propulsion Drive Field Propulsion Drive Cooled Impulse Thruster > --- UTILITY ---------- Advanced Power Amplifier Advanced Heat Sink Experimental Coolant Injector Experimental Terrain Scan Processor Microactuators ECM Suite Advanced Reaction Control System Improved Phase Shifter Light Regenerative Plating Improved Hacking Suite Experimental Hacking Suite Improved System Shield > --- WEAPON ----------- Greatsword > --- INVENTORY -------- Light Antimatter Reactor Light Quantum Reactor Xenon Bombardment Thruster Improved Hardlight Generator Heavy Rocket Launcher [Rating: 133] Favorites ----------- Power Light Antimatter Reactor Engine Light Ion Engine Power Core Light Nuclear Core Reactor Light Antimatter Reactor Propulsion Xenon Bombardment Thruster Leg Aluminum Leg Wheel Armored Wheel Flight Unit Xenon Bombardment Thruster Utility Hacking Suite Device Microactuators Storage Small Storage Unit Processor Advanced Melee Analysis Suite Hackware Hacking Suite Protection Light Regenerative Plating Weapon Blade Saw Energy Gun Medium Laser Ballistic Gun Gauss Rifle Launcher Heavy Missile Launcher Slashing Weapon Blade Saw Build | -11 -10 -10 -9 -8 -7 -6 -6 -6 -5 -4 -3 -2 -2 ------- Run | Yrd Mat Min Mat Mat Fac Fac Was Fac Fac Fac Res Res Tes Slots Evolved 16 | . . . 2 2 2 2 . . 2 2 2 2 . Power 1 | . . . . . . . . . 1 . . . . Propulsion 5 | . . . 2 . 1 . . . 1 . 1 . . Utility 10 | . . . . 2 1 2 . . . 2 1 2 . Weapon . | . . . . . . . . . . . . . . Parts Attached 103 | 7 . . 16 11 30 1 1 2 4 11 6 . 14 Power 13 | 1 . . 3 1 3 . . . 2 1 2 . . Engine 4 | 1 . . 2 . . . . . 1 . . . . Core 6 | . . . 1 1 3 . . . 1 . . . . Reactor 3 | . . . . . . . . . . 1 2 . . Propulsion 39 | 2 . . 8 4 15 . . . 1 4 3 . 2 Treads . | . . . . . . . . . . . . . . Leg 3 | 2 . . . . 1 . . . . . . . . Wheel 1 | . . . 1 . . . . . . . . . . Hover . | . . . . . . . . . . . . . . Flight 35 | . . . 7 4 14 . . . 1 4 3 . 2 Utility 38 | 1 . . 4 3 8 1 1 1 1 6 1 . 11 Device 19 | . . . 2 1 4 . 1 1 . 2 1 . 7 Storage 1 | 1 . . . . . . . . . . . . . Processor 7 | . . . 1 . 3 1 . . . 2 . . . Hackware 6 | . . . . 1 1 . . . 1 1 . . 2 Protection 5 | . . . 1 1 . . . . . 1 . . 2 Artifact . | . . . . . . . . . . . . . . Weapon 13 | 3 . . 1 3 4 . . 1 . . . . 1 Energy Gun 3 | 2 . . . 1 . . . . . . . . . Energy Cannon . | . . . . . . . . . . . . . . Ballistic Gun 5 | 1 . . 1 1 2 . . . . . . . . Ballistic Cannon . | . . . . . . . . . . . . . . Launcher 1 | . . . . 1 . . . . . . . . . Special Weapon . | . . . . . . . . . . . . . . Impact Weapon . | . . . . . . . . . . . . . . Slashing Weapon 4 | . . . . . 2 . . 1 . . . . 1 Piercing Weapon . | . . . . . . . . . . . . . . Special Melee Weapon . | . . . . . . . . . . . . . . Unidentified Prototypes 10 | . . . . . . . . . . 1 . . 9 Parts Lost 28 | . . . 3 4 9 . . 1 . 2 . . 9 Power 3 | . . . 1 . 1 . . . . . . . 1 Propulsion 19 | . . . 1 4 6 . . . . 2 . . 6 Utility 4 | . . . . . 2 . . . . . . . 2 Weapon 2 | . . . 1 . . . . 1 . . . . . Highest Loss Streak 9 | . . . 3 2 7 . . 1 . 2 . . 9 To Critical Strikes . | . . . . . . . . . . . . . . Average Backups 4 | . 1 3 6 4 4 5 5 5 3 4 4 3 4 Power 1 | . . . . . 1 2 2 2 1 1 1 1 2 Propulsion 1 | . . 1 2 1 1 2 2 2 1 1 . 1 . Utility . | . . . 1 . . . . . . . 1 . . Weapon 1 | . 1 1 1 1 1 1 1 1 1 1 1 1 1 Tool/Special . | . . . . . . . . . . . . . . Unused Backups 12 | . . . 3 1 2 . . 1 . 2 . . 3 Power 6 | . . . 2 . . . . . . 2 . . 2 Propulsion 2 | . . . 1 . . . . 1 . . . . . Utility 1 | . . . . . 1 . . . . . . . . Weapon 3 | . . . . 1 1 . . . . . . . 1 Tool/Special . | . . . . . . . . . . . . . . Average Slot Usage (%) 92 | . 85 85 86 96 96 88 95 95 92 90 93 94 92 Engine 2 | . 14 14 10 . . . . . 5 2 . . . Core 4 | . . . . 9 6 6 6 6 5 5 1 . . Reactor 1 | . . . . . . . . . . 2 7 8 7 Leg 4 | . 28 28 16 . 1 . . . . . . . . Flight 28 | . . . 11 35 34 33 33 33 33 30 32 30 28 Device 17 | . . . 5 18 21 13 15 20 17 18 19 24 24 Storage 2 | . 14 14 10 . . . . . . . . . . Processor 6 | . . . . 8 7 8 13 13 8 5 9 8 5 Hackware 8 | . . . . 1 7 13 13 13 14 17 14 13 12 Protection 2 | . . . 3 5 . . . . . 1 3 4 6 Energy Gun 3 | . 14 14 11 9 . . . . . . . . . Ballistic Gun 5 | . 14 14 10 8 8 . . . . . . . . Slashing Weapon 4 | . . . . . 5 13 13 8 5 5 3 4 4 Peak Build Rating 133 | 6 6 6 13 21 46 49 56 60 71 92 106 112 133 Average Rating 50 | 4 6 6 9 18 38 46 50 56 68 82 102 111 121 On Entrance 45 | . 6 6 6 13 21 44 49 56 60 71 92 104 112 Avg Prop Armor Cover (%) 4 | . . . 14 . 3 4 3 3 . . . . . Naked Turns . | . . . . . . . . . . . . . . Heaviest Build 51 | 12 12 12 15 19 20 13 16 17 26 33 40 50 51 Greatest Support 51 | 20 20 20 20 20 27 20 20 20 32 36 51 51 51 Greatest Overweight (x) 2 | . . . 1 . . . . . . . . . 2 Average Overweight (x) . | . . . . . . . . . . . . . . Largest Inventory Capacity 8 | 8 8 8 8 5 5 5 5 5 5 5 5 5 5 Average Capacity 5 | 6 8 8 7 5 5 5 5 5 5 5 5 5 5 Most Carried 8 | 1 1 4 8 5 5 5 5 5 5 5 5 4 5 Average Carried 4 | . 1 3 6 4 4 5 5 4 4 4 4 3 4 Final Capacity 8 | 8 8 8 5 5 5 5 5 5 5 5 5 5 5 Final Carried 5 | 1 1 4 5 3 5 5 5 5 5 5 5 4 4 Class Distribution -------------------- 61% | Hacker-Sprinter 15% | Mutant 12% | Scavenger-Sprinter 7% | Scavenger-Mutant Dominant Class ---------------- Mutant | -10/Materials Mutant | -10/Mines Mutant | -9/Materials Scavenger-Sprinter | -8/Materials Hacker-Sprinter | -7/Factory Hacker-Sprinter | -6/Factory Hacker-Sprinter | -6/Waste Hacker-Sprinter | -6/Factory Hacker-Sprinter | -5/Factory Hacker-Sprinter | -4/Factory Hacker-Sprinter | -3/Research Hacker-Sprinter | -2/Research Hacker-Sprinter | -2/Testing Resources | -11 -10 -10 -9 -8 -7 -6 -6 -6 -5 -4 -3 -2 -2 ----------- Run | Yrd Mat Min Mat Mat Fac Fac Was Fac Fac Fac Res Res Tes Matter Collected 1523 | 162 . 54 227 212 521 . . 40 . 160 86 . 61 Remotely . | . . . . . . . . . . . . . . Salvage Created 2287 | . . 54 515 327 517 22 . 128 . 392 271 . 61 Parts 144 | . . 5 42 16 34 2 . 8 . 21 13 . 3 Haulers Intercepted 1 | . . . . 1 . . . . . . . . . Recyclers Shooed 1 | . . . . . 1 . . . . . . . . Parts Field Recycled . | . . . . . . . . . . . . . . Retrieved Matter . | . . . . . . . . . . . . . . Parts Self-Destructed . | . . . . . . . . . . . . . . Prevented . | . . . . . . . . . . . . . . Parts Restored . | . . . . . . . . . . . . . . Kills | -11 -10 -10 -9 -8 -7 -6 -6 -6 -5 -4 -3 -2 -2 ------- Run | Yrd Mat Min Mat Mat Fac Fac Was Fac Fac Fac Res Res Tes Combat Hostiles Destroyed 52 | . . 3 18 7 12 . . 2 . 6 4 . . Melee 21 | . . . . . 9 . . 2 . 6 4 . . Guns 31 | . . 3 18 7 3 . . . . . . . . Classes Destroyed 12 | . . 1 3 3 3 1 . . . . . . 1 Worker 2 | . . . . . 2 . . . . . . . . Builder 1 | . . . . . 1 . . . . . . . . Tunneler 1 | . . . 1 . . . . . . . . . . Hauler 1 | . . . . 1 . . . . . . . . . Operator 5 | . . . . . . 1 . . . 2 2 . . Watcher 5 | . . . . 1 . . . 1 . 2 1 . . Swarmer 29 | . . 3 10 3 6 . . . . 4 3 . . Grunt 9 | . . . 5 . 3 . . 1 . . . . . Researcher 1 | . . . . . . . . . . . . . 1 Sentry 8 | . . . 3 3 1 . . . . 1 . . . Hunter 2 | . . . . 1 . . . . . 1 . . . Programmer 4 | . . . . . 2 . . 1 . . 1 . . Best Kill Streak 8 | . . 3 8 5 3 1 . 2 . 5 4 . 1 Combat Bots Only 8 | . . 3 8 5 3 . . 1 . 4 4 . . Max Kills in Single Turn 2 | . . 1 2 1 1 1 . 1 . 1 1 . 1 Gunslinging 1 | . . . 1 . . . . . . . . . . Exploded . | . . . . . . . . . . . . . . Melee 1 | . . . . . 1 . . 1 . 1 1 . . Uniques/NPCs Destroyed . | . . . . . . . . . . . . . . Combat | -11 -10 -10 -9 -8 -7 -6 -6 -6 -5 -4 -3 -2 -2 -------- Run | Yrd Mat Min Mat Mat Fac Fac Was Fac Fac Fac Res Res Tes Hostile Shots Fired 485 | . . 14 69 48 129 . . 18 . 31 26 4 146 Missed 183 | . . 3 15 20 57 . . 11 . 15 15 2 45 Hits 302 | . . 11 54 28 72 . . 7 . 16 11 2 101 Melee 2 | . . . . . 2 . . . . . . . . Projectile 300 | . . 11 54 28 70 . . 7 . 16 11 2 101 AOE 1 | . . . . . . . . . . . . . 1 Critical Strikes 15 | . . . 1 1 2 . . . . . . . 11 Part Disruptions 4 | . . . . . . . . . . . . . 4 Damage Taken 3323 | . . 69 428 329 781 . . 123 . 245 192 44 1112 Core 654 | . . 21 53 69 227 . . 19 . 23 34 21 187 Absorbed by Shields 485 | . . . . . . . . . . . . . 485 Ignored by Resistances 1072 | . . 22 136 93 222 . . 35 . 69 53 12 430 Regen/Repaired (Parts) 115 | . . . . . . . . . . . 107 . 8 Core Remaining (%) 91 | 100 . 91 86 87 67 . . 97 100 98 97 . . Volleys Fired 89 | . . 5 40 27 17 . . . . . . . . Largest 2 | . . 2 2 2 2 . . . . . . . . Hottest 73 | . . 70 70 73 56 . . . . . . . . Shots Fired 164 | . . 10 75 50 29 . . . . . . . . Gun 160 | . . 10 75 46 29 . . . . . . . . Cannon . | . . . . . . . . . . . . . . Launcher 4 | . . . . 4 . . . . . . . . . Special . | . . . . . . . . . . . . . . Kinetic 92 | . . 5 35 23 29 . . . . . . . . Thermal 68 | . . 5 40 23 . . . . . . . . . Explosive 4 | . . . . 4 . . . . . . . . . Electromagnetic . | . . . . . . . . . . . . . . Robot Hit Streak 17 | . . 5 14 17 10 . . . . . . . . Robot Miss Streak 5 | . . 1 2 2 5 . . . . . . . . Penetration Max . | . . . . . . . . . . . . . . Secondary Targets 9 | . . 1 5 1 2 . . . . . . . . Max Gunslinging Chain 1 | . . 1 1 1 1 . . . . . . . . Shots Hit Robots 208 | . . 7 57 37 59 5 . 7 . 19 16 . 1 Core Hits 105 | . . 4 27 18 33 2 . 4 . 10 6 . 1 Critical Kills . | . . . . . . . . . . . . . . Critical Parts Destroyed . | . . . . . . . . . . . . . . Critical Strikes 27 | . . 1 3 1 14 1 . 1 . 4 2 . . Burn 5 | . . 1 3 1 . . . . . . . . . Sever 22 | . . . . . 14 1 . 1 . 4 2 . . Melee Attacks 122 | . . . . . 48 5 . 9 1 24 22 2 11 Impact . | . . . . . . . . . . . . . . Slashing 122 | . . . . . 48 5 . 9 1 24 22 2 11 Piercing . | . . . . . . . . . . . . . . Sneak Attacks 7 | . . . . . 3 . . 1 . 1 1 . 1 Combat Hostiles 3 | . . . . . . . . 1 . 1 1 . . Follow-up Attacks 6 | . . . . . 5 1 . . . . . . . Damage Inflicted 5332 | . . 90 698 478 1053 137 . 319 . 1283 1132 . 142 Guns 1566 | . . 89 698 478 301 . . . . . . . . Cannons . | . . . . . . . . . . . . . . Explosions . | . . . . . . . . . . . . . . Melee 3765 | . . . . . 752 137 . 319 . 1283 1132 . 142 Ramming 1 | . . 1 . . . . . . . . . . . Kinetic 916 | . . 52 287 276 301 . . . . . . . . Thermal 650 | . . 37 411 202 . . . . . . . . . Explosive . | . . . . . . . . . . . . . . Electromagnetic . | . . . . . . . . . . . . . . Impact . | . . . . . . . . . . . . . . Slashing 3765 | . . . . . 752 137 . 319 . 1283 1132 . 142 Piercing . | . . . . . . . . . . . . . . Highest Corruption 19 | . . . . . 1 . . . . . 2 . 19 Average Corruption 2 | . . . . . 1 . . . . . 1 . 6 Corruption Purged . | . . . . . . . . . . . . . . Corruption Blocked . | . . . . . . . . . . . . . . Effects 13 | . . . . . 3 . . . . . 3 . 7 Message Errors 4 | . . . . . 1 . . . . . 1 . 2 Matter Fused 2 | . . . . . 1 . . . . . 1 . . Energy Discharges 4 | . . . . . 1 . . . . . 1 . 2 Data Loss (minor) 2 | . . . . . . . . . . . . . 2 Misdirections 1 | . . . . . . . . . . . . . 1 Overload Shots . | . . . . . . . . . . . . . . Overflow Damage 283 | . . . . . 3 . . . . 59 221 . . Projectiles . | . . . . . . . . . . . . . . Explosions . | . . . . . . . . . . . . . . Melee 283 | . . . . . 3 . . . . 59 221 . . Knockbacks . | . . . . . . . . . . . . . . Impact . | . . . . . . . . . . . . . . Kinetic . | . . . . . . . . . . . . . . Secondary . | . . . . . . . . . . . . . . Self-Inflicted Damage 20 | . . . . 20 . . . . . . . . . Shots 1 | . . . . 1 . . . . . . . . . Rammed . | . . . . . . . . . . . . . . Targets Rammed 1 | . . 1 . . . . . . . . . . . Kicked 1 | . . 1 . . . . . . . . . . . Crushed . | . . . . . . . . . . . . . . Highest Temperature 381 | . . 27 237 381 . . . . . . 5 3 4 Average Temperature 72 | . . 15 71 125 . . . . . . 2 1 2 Received Heat Transfer 770 | . . . 180 117 270 . . 27 . 45 30 18 83 Effects 2 | . . . 1 1 . . . . . . . . . Energy Bleed 1 | . . . 1 . . . . . . . . . . Damage (minor) 1 | . . . . 1 . . . . . . . . . Siege Activations . | . . . . . . . . . . . . . . Martial Activations . | . . . . . . . . . . . . . . Shielding Activations . | . . . . . . . . . . . . . . Robots Disrupted . | . . . . . . . . . . . . . . Combat Hostiles . | . . . . . . . . . . . . . . Robots Corrupted . | . . . . . . . . . . . . . . Combat Hostiles . | . . . . . . . . . . . . . . Parts Fried . | . . . . . . . . . . . . . . Impact Corruptions . | . . . . . . . . . . . . . . Robots Melted . | . . . . . . . . . . . . . . Combat Hostiles . | . . . . . . . . . . . . . . Parts Melted 4 | . . . 2 2 . . . . . . . . . Heat Transferred 2294 | . . 185 1443 666 . . . . . . . . . Parts Sabotaged . | . . . . . . . . . . . . . . Parts Stolen . | . . . . . . . . . . . . . . Parts Stripped . | . . . . . . . . . . . . . . Power Chain Reactions . | . . . . . . . . . . . . . . Alert | -11 -10 -10 -9 -8 -7 -6 -6 -6 -5 -4 -3 -2 -2 ------- Run | Yrd Mat Min Mat Mat Fac Fac Was Fac Fac Fac Res Res Tes Maximum Alert Level 1 | . . . 1 . 1 . . . . . 1 . . Low Security (%) 82 | 100 100 100 56 100 74 100 100 100 100 100 33 100 100 Level 1 17 | . . . 43 . 25 . . . . . 66 . . Level 2 . | . . . . . . . . . . . . . . Level 3 . | . . . . . . . . . . . . . . Level 4 . | . . . . . . . . . . . . . . Level 5 . | . . . . . . . . . . . . . . High Security . | . . . . . . . . . . . . . . Max Security . | . . . . . . . . . . . . . . Peak Influence 386 | . . 70 386 160 290 104 26 55 15 190 234 109 89 Initial 131 | . . . 3 131 . 76 26 15 14 5 85 109 51 Average 87 | . . 37 181 86 88 82 26 22 14 55 181 107 51 Influence Increases 2517 | . . 70 521 294 720 46 . 140 11 343 249 6 117 Destroy 0b10 Robot/C 1060 | . . 60 360 140 240 . . 40 . 120 80 . 20 Destroy 0b10 Robot/NC 75 | . . . 5 10 15 5 . 5 . 20 15 . . Destroy Leader 262 | . . 10 80 54 50 . . 12 . 34 22 . . Successful Hack 242 | . . . . 7 55 41 . 21 11 39 19 . 49 Disable Machine 27 | . . . . . . . . . . . . . 27 Destroy Structure 71 | . . . 1 23 . . . 2 . 10 8 6 21 Partial Spotted 135 | . . . 15 30 45 . . 30 . 15 . . . Lose Combat Pursuer 645 | . . . 60 30 315 . . 30 . 105 105 . . Influence Decreases 2517 | . . 60 165 660 540 134 66 131 31 169 214 125 222 Entered New Map 727 | . . . 7 235 . 104 66 11 21 10 104 115 54 Time Decay 1119 | . . 60 128 120 335 30 . 110 10 122 110 10 84 Search Patrol Dispatched 100 | . . . . . 100 . . . . . . . . Lost Part 178 | . . . 30 18 90 . . 10 . 20 . . 10 Lost Ally 10 | . . . . . 10 . . . . . . . . Purge Threat 383 | . . . . 287 5 . . . . 17 . . 74 Squads Dispatched 16 | . . . 2 1 5 . . 1 . 2 1 . 4 Investigation 5 | . . . 1 1 1 . . 1 . 1 . . . Extermination 5 | . . . . . 2 . . . . 1 1 . 1 Reinforcement 5 | . . . 1 . 2 . . . . . . . 2 Assault 1 | . . . . . . . . . . . . . 1 Garrison . | . . . . . . . . . . . . . . Intercept . | . . . . . . . . . . . . . . Searches Triggered 1 | . . . . . 1 . . . . . . . . Construction Impeded . | . . . . . . . . . . . . . . Haulers Reinforced . | . . . . . . . . . . . . . . Active Scanning Responses . | . . . . . . . . . . . . . . Cargo Convoy Interrupts . | . . . . . . . . . . . . . . Stealth | -11 -10 -10 -9 -8 -7 -6 -6 -6 -5 -4 -3 -2 -2 --------- Run | Yrd Mat Min Mat Mat Fac Fac Was Fac Fac Fac Res Res Tes Distress Signals 5 | . . . 1 2 . . . 1 . . 1 . . Communications Jammed . | . . . . . . . . . . . . . . Distress Signals . | . . . . . . . . . . . . . . Times Spotted 148 | . . 5 21 13 39 1 3 11 . 20 17 1 17 Peak Tracking Total 10 | . . 3 8 6 10 1 3 7 . 9 4 1 9 Tactical Retreats 31 | . . . 2 3 12 . . 2 . 3 6 . 3 ECM-based Alert Blocks 10 | . . . . 1 . . . . . . 3 . 6 Traps | -11 -10 -10 -9 -8 -7 -6 -6 -6 -5 -4 -3 -2 -2 ------- Run | Yrd Mat Min Mat Mat Fac Fac Was Fac Fac Fac Res Res Tes Traps Triggered 5 | . . . 1 . . 1 . . . 1 1 . 1 Indirectly . | . . . . . . . . . . . . . . Trap Hack Attempts . | . . . . . . . . . . . . . . Triggered . | . . . . . . . . . . . . . . Disarmed . | . . . . . . . . . . . . . . Reprogrammed . | . . . . . . . . . . . . . . Reused . | . . . . . . . . . . . . . . Traps Extracted . | . . . . . . . . . . . . . . Installed . | . . . . . . . . . . . . . . Triggered . | . . . . . . . . . . . . . . Machines | -11 -10 -10 -9 -8 -7 -6 -6 -6 -5 -4 -3 -2 -2 ---------- Run | Yrd Mat Min Mat Mat Fac Fac Was Fac Fac Fac Res Res Tes Machines Disabled 3 | . . . . . . . . . . . . . 3 Max in Single Turn 1 | . . . . . . . . . . . . . 1 Garrison Access 4 | . . . . . 1 . . . . 1 2 . . Machines Repaired . | . . . . . . . . . . . . . . Machines Dismantled . | . . . . . . . . . . . . . . Machines Sabotaged . | . . . . . . . . . . . . . . Overloaded Fab Kills . | . . . . . . . . . . . . . . Hacking | -11 -10 -10 -9 -8 -7 -6 -6 -6 -5 -4 -3 -2 -2 --------- Run | Yrd Mat Min Mat Mat Fac Fac Was Fac Fac Fac Res Res Tes Machines Accessed 40 | . . . 1 5 7 2 . 5 1 6 5 . 8 Terminals 25 | . . . . 4 3 2 . 4 1 4 1 . 6 Fabricators 4 | . . . . . 2 . . 1 . 1 . . . Repair Stations 1 | . . . . . . . . . . . 1 . . Recycling Units . | . . . . . . . . . . . . . . Scanalyzers 6 | . . . 1 1 1 . . . . . 1 . 2 Garrison Access 4 | . . . . . 1 . . . . 1 2 . . Total Hacks 96 | . . . 2 15 17 5 . 11 2 14 14 . 16 Successful 63 | . . . 2 9 8 4 . 8 2 11 10 . 9 Failed 32 | . . . . 6 9 1 . 3 . 3 3 . 7 Catastrophic 3 | . . . . . 2 . . . . . . . 1 Database Lockouts 1 | . . . . . . . . . . . 1 . . Manual 14 | . . . . . 3 . . 6 2 . . . 3 Terminals 64 | . . . . 13 9 5 . 9 2 11 2 . 13 Fabricators 9 | . . . . . 5 . . 2 . 2 . . . Repair Stations 2 | . . . . . . . . . . . 2 . . Recycling Units . | . . . . . . . . . . . . . . Scanalyzers 15 | . . . 2 2 2 . . . . . 6 . 3 Garrison Access 6 | . . . . . 1 . . . . 1 4 . . Terminal Hacks 39 | . . . . 7 4 4 . 6 2 8 1 . 7 Record 1 | . . . . . . 1 . . . . . . . Part Schematic 5 | . . . . . 2 . . 2 . . . . 1 Prototype ID Bank 5 | . . . . . . 1 . 1 . 3 . . . Open Door 1 | . . . . . . . . . . . . . 1 Level Access Points 5 | . . . . 1 . 1 . 1 1 1 . . . Branch Access Points 2 | . . . . . . . . . 1 . . . 1 Recycling Unit Index 1 | . . . . . 1 . . . . . . . . Scanalyzer Index 1 | . . . . . . . . . . 1 . . . Alert Level 1 | . . . . 1 . . . . . . . . . Unreport Threat 5 | . . . . 2 1 . . . . 1 . . 1 Locate Traps 2 | . . . . 1 . . . . . . . . 1 Recall Investigation 1 | . . . . . . . . 1 . . . . . Registered Components 1 | . . . . . . . . . . 1 . . . Zone Layout 7 | . . . . 2 . 1 . 1 . 1 1 . 1 Protovariant Controls 1 | . . . . . . . . . . . . . 1 Fabricator Hacks 5 | . . . . . 1 . . 2 . 2 . . . Load Schematic 3 | . . . . . 1 . . 1 . 1 . . . Build 2 | . . . . . . . . 1 . 1 . . . Repair Station Hacks 2 | . . . . . . . . . . . 2 . . Scan Component 1 | . . . . . . . . . . . 1 . . Repair 1 | . . . . . . . . . . . 1 . . Recycling Unit Hacks . | . . . . . . . . . . . . . . Scanalyzer 12 | . . . 2 2 1 . . . . . 5 . 2 Retrieve Study 12 | . . . 2 2 1 . . . . . 5 . 2 Garrison Access Hacks 4 | . . . . . 1 . . . . 1 2 . . Seal Access 4 | . . . . . 1 . . . . 1 2 . . Unauthorized Hacks 1 | . . . . . 1 . . . . . . . . Terminals 1 | . . . . . 1 . . . . . . . . Assimilate 1 | . . . . . 1 . . . . . . . . Fabricators . | . . . . . . . . . . . . . . Repair Stations . | . . . . . . . . . . . . . . Recycling Units . | . . . . . . . . . . . . . . Scanalyzers . | . . . . . . . . . . . . . . Garrison Access . | . . . . . . . . . . . . . . Data Cores Recovered 5 | . . . . . . 1 . . . 2 2 . . Used 1 | . . . . . . 1 . . . . . . . Hacking Detections 28 | . . . . 4 6 2 . 4 . 4 3 . 5 Full Trace Events 4 | . . . . 1 1 . . 1 . 1 . . . Feedback Events . | . . . . . . . . . . . . . . Feedback Blocked . | . . . . . . . . . . . . . . Robot Schematics Acquired 1 | . . . . . . . . . . . . . 1 Robots Built . | . . . . . . . . . . . . . . Authchips . | . . . . . . . . . . . . . . Time . | . . . . . . . . . . . . . . Total Robot Build Rating . | . . . . . . . . . . . . . . Part Schematics Acquired 7 | . . . . . 2 . . 2 . . . . 3 Parts Built 3 | . . . . . . . . 2 . 1 . . . Authchips . | . . . . . . . . . . . . . . Time 137 | . . . . . . . . 42 . 95 . . . Total Part Build Rating 13 | . . . . . . . . 8 . 5 . . . Part Studies Acquired 12 | . . . 2 2 1 . . . . . 5 . 2 Parts Repaired 1 | . . . . . . . . . . . 1 . . Time 22 | . . . . . . . . . . . 22 . . Parts Recycled . | . . . . . . . . . . . . . . Recycled Matter . | . . . . . . . . . . . . . . Retrieved Matter . | . . . . . . . . . . . . . . Retrieved Components . | . . . . . . . . . . . . . . Parts Scanalyzed . | . . . . . . . . . . . . . . Part Schematics Acquired . | . . . . . . . . . . . . . . Parts Damaged . | . . . . . . . . . . . . . . Bothacking | -11 -10 -10 -9 -8 -7 -6 -6 -6 -5 -4 -3 -2 -2 ------------ Run | Yrd Mat Min Mat Mat Fac Fac Was Fac Fac Fac Res Res Tes Used RIF Installer . | . . . . . . . . . . . . . . Robots Hacked . | . . . . . . . . . . . . . . Non-combat . | . . . . . . . . . . . . . . Combat . | . . . . . . . . . . . . . . Robot Hacks Applied . | . . . . . . . . . . . . . . Relay Couplers Released . | . . . . . . . . . . . . . . Fabnet Peak Effective % . | . . . . . . . . . . . . . . Robots Rewired . | . . . . . . . . . . . . . . Allies Hacked . | . . . . . . . . . . . . . . Hacks Repelled . | . . . . . . . . . . . . . . Allies | -11 -10 -10 -9 -8 -7 -6 -6 -6 -5 -4 -3 -2 -2 -------- Run | Yrd Mat Min Mat Mat Fac Fac Was Fac Fac Fac Res Res Tes Total Allies 1 | . . . . . 1 . . . . . . . . Largest Group 1 | . . . . . 1 . . . . . . . . Highest-Rated Group 26 | . . . . . 26 . . . . . . . . Highest-Rated Ally 26 | . . . . . 26 . . . . . . . . Total Orders . | . . . . . . . . . . . . . . Ally Attacks . | . . . . . . . . . . . . . . Total Damage . | . . . . . . . . . . . . . . Kills . | . . . . . . . . . . . . . . Allies Corrupted . | . . . . . . . . . . . . . . Allies Melted . | . . . . . . . . . . . . . . Intel | -11 -10 -10 -9 -8 -7 -6 -6 -6 -5 -4 -3 -2 -2 ------- Run | Yrd Mat Min Mat Mat Fac Fac Was Fac Fac Fac Res Res Tes Active Infowar (turns) 1371 | . . . 164 282 633 . . . . . 40 26 226 Optics 267 | . . . 23 244 . . . . . . . . . Terrain 990 | . . . 75 282 633 . . . . . . . . Seismic 860 | . . . 89 271 500 . . . . . . . . Jamming 33 | . . . . . . . . . . . . . 33 ECM 338 | . . . . 45 1 . . . . . 40 26 226 Robot Analysis Total . | . . . . . . . . . . . . . . Derelict Logs Recovered . | . . . . . . . . . . . . . . Drone Launches . | . . . . . . . . . . . . . . Drone Recoveries . | . . . . . . . . . . . . . . Exploration | -11 -10 -10 -9 -8 -7 -6 -6 -6 -5 -4 -3 -2 -2 ------------- Run | Yrd Mat Min Mat Mat Fac Fac Was Fac Fac Fac Res Res Tes Turns Passed 2765 | 53 39 123 330 282 800 65 19 231 36 315 220 26 226 Spaces Moved 4966 | 37 33 87 232 398 1623 191 59 488 109 570 539 78 522 Core 3 | 3 . . . . . . . . . . . . . Treads . | . . . . . . . . . . . . . . Legs 163 | 34 33 87 9 . . . . . . . . . . Wheels 121 | . . . 121 . . . . . . . . . . Hover . | . . . . . . . . . . . . . . Flight 4679 | . . . 102 398 1623 191 59 488 109 570 539 78 522 Fastest Speed 22 | 50 120 120 31 31 26 28 28 28 23 23 22 23 22 Average Speed 32 | 114 120 120 70 31 31 28 28 28 23 24 22 23 23 Slowest Speed 184 | 120 120 120 120 31 41 28 28 28 23 28 25 23 184 Overloaded Moves . | . . . . . . . . . . . . . . Propulsion Burnouts . | . . . . . . . . . . . . . . Robots Hopped 13 | . . . . . 6 . . . . 3 1 . 3 Potential Cave-ins 5 | . . . . 5 . . . . . . . . . Cave-ins Triggered . | . . . . . . . . . . . . . . Exploration Rate (%) 22 | 4 9 28 27 35 41 4 63 19 4 18 16 2 47 Regions Visited 13 Branch Regions 2 Pre-discovered Areas . | . . . . . . . . . . . . . . Known Exits Taken 4 | . . . . 1 . . . 1 1 1 . . . Unknown Exits Taken 7 | 1 1 1 1 . 1 . . . . . 1 1 . Scrap Searched . | . . . . . . . . . . . . . . Spaces Dug 20 | . . . . . . . . 2 . 5 4 2 7 Terrain Destroyed 90 | . . . . 70 . . . 2 . 5 4 2 7 Melee 20 | . . . . . . . . 2 . 5 4 2 7 Projectile . | . . . . . . . . . . . . . . AOE 70 | . . . . 70 . . . . . . . . . Terrain Rammed . | . . . . . . . . . . . . . . Walls Destroyed . | . . . . . . . . . . . . . . Machines Disabled . | . . . . . . . . . . . . . . Actions | -11 -10 -10 -9 -8 -7 -6 -6 -6 -5 -4 -3 -2 -2 --------- Run | Yrd Mat Min Mat Mat Fac Fac Was Fac Fac Fac Res Res Tes Total 5728 | 44 32 95 327 503 1789 196 60 568 117 708 602 82 605 Wait 301 | . . . 13 52 49 . 1 64 . 93 29 . . Move 4927 | 36 32 86 231 397 1610 191 58 486 108 563 536 77 516 Hop 13 | . . . . . 6 . . . . 3 1 . 3 Pick Up 49 | 1 . 3 14 8 12 . . 2 2 3 2 1 1 Fast Attach 58 | 6 . . 5 2 15 1 1 1 1 8 4 . 14 Attach 23 | . . . 6 5 4 . . . 2 1 2 2 1 Detach 2 | . . . . . 1 . . . . 1 . . . Swap 34 | 1 . . 5 7 12 . . 1 1 3 2 . 2 Drop 72 | . . . 13 5 21 . . 4 2 9 4 . 14 Fire 89 | . . 5 40 27 17 . . . . . . . . Melee 115 | . . . . . 42 4 . 9 1 24 22 2 11 Ram . | . . . . . . . . . . . . . . Kick 1 | . . 1 . . . . . . . . . . . Crush . | . . . . . . . . . . . . . . Escape Stasis 44 | . . . . . . . . 1 . . . . 43 Rewire . | . . . . . . . . . . . . . . Trap . | . . . . . . . . . . . . . . Miscellaneous . | . . . . . . . . . . . . . . Route ------- -11/Scrapyard -10/Materials -10/Mines -9/Materials -8/Materials (discovered 3 exits: *Fac x3) -7/Factory -6/Factory (discovered 4 exits: Fac x4) -6/Waste -6/Factory (discovered 4 exits: *Fac x4) -5/Factory (discovered 6 exits: *Fac x4 / Upp x2) -4/Factory (discovered 6 exits: *Res x4 / [*Upp] / [*Arm]) -3/Research -2/Research -2/Testing History --------- Turn | Location | Event 6 | -11/Scrapyard | Discovered new exit (range 15) 54 | -11/Scrapyard | Entered Materials 70 | -10/Materials | Discovered new exit (range 15) 93 | -10/Materials | Entered Mines 94 | -10/Mines | Met a Derelict bent on vengeance 194 | -10/Mines | Discovered new exit (range 11) 216 | -10/Mines | Entered Materials 216 | -9/Materials | Evolved 2 slots: Propulsion x2 311 | -9/Materials | Build established: Mutant 465 | -9/Materials | Destroyed 8 combat bots 519 | -9/Materials | Lost 3 parts (1p1n1w) 525 | -9/Materials | Discovered new exit (range 18) 546 | -9/Materials | Entered another Materials area 546 | -8/Materials | Evolved 2 slots: Utility x2 749 | -8/Materials | Identified exit to Factory 768 | -8/Materials | Build established: Scavenger-Sprinter 828 | -8/Materials | Entered Factory 828 | -7/Factory | Evolved 2 slots: Propulsion x1, Utility x1 1296 | -7/Factory | Build established: Hacker-Sprinter 1425 | -7/Factory | Lost 7 parts (1p5n1u) 1617 | -7/Factory | Discovered new exit (range 15) 1628 | -7/Factory | Search patrols dispatched 1628 | -7/Factory | Entered another Factory area 1628 | -6/Factory | Evolved 2 slots: Utility x2 1665 | -6/Factory | Identified exit to Factory 1693 | -6/Factory | Sucked down chute 1693 | -6/Factory | Entered Waste 1696 | -6/Waste | Spotted C-40 Crusher 1700 | -6/Waste | Spotted C-40 Crusher 1703 | -6/Waste | Spotted C-40 Crusher 1706 | -6/Waste | Discovered new exit (range 16) 1706 | -6/Waste | Spotted C-40 Crusher 1712 | -6/Waste | Entered Factory 1785 | -6/Factory | Spotted B-75 Beast 1881 | -6/Factory | Fabricated Greatsword (x2) 1943 | -6/Factory | Entered another Factory area 1943 | -5/Factory | Evolved 2 slots: Power x1, Propulsion x1 1963 | -5/Factory | Identified exit to Factory 1963 | -5/Factory | Identified exit to Upper Caves 1979 | -5/Factory | Entered another Factory area 1979 | -4/Factory | Evolved 2 slots: Utility x2 2006 | -4/Factory | Identified exit to Research 2111 | -4/Factory | Fabricated Imp. Hacking Suite (x1) 2235 | -4/Factory | Discovered new exit (range 8) 2277 | -4/Factory | Found Prototype Processor 2277 | -4/Factory | Identified Exp. Terrain Scan Processor 2281 | -4/Factory | Discovered new exit (range 8) 2294 | -4/Factory | Entered Research 2294 | -3/Research | Evolved 2 slots: Propulsion x1, Utility x1 2336 | -3/Research | Spotted B-86 Titan 2353 | -3/Research | Central database locked down 2401 | -3/Research | Repaired Greatsword 2447 | -3/Research | Spotted B-86 Titan 2508 | -3/Research | Discovered new exit (range 15) 2514 | -3/Research | Entered another Research area 2514 | -2/Research | Evolved 2 slots: Utility x2 2534 | -2/Research | Discovered new exit (range 4) 2540 | -2/Research | Entered Testing 2550 | -2/Testing | Found Prototype Device 2551 | -2/Testing | Identified Exp. Thermal Defense Suite 2558 | -2/Testing | Found Prototype Device 2558 | -2/Testing | Identified Exp. Transmission Jammer 2593 | -2/Testing | Found Lgt. Regenerative Plating 2595 | -2/Testing | Found Lgt. Regenerative Plating 2604 | -2/Testing | Spotted Striker 2605 | -2/Testing | Spotted Striker 2637 | -2/Testing | Protovariant out of control (PP-Q7K8K1HW0L) 2637 | -2/Testing | Unleashed a protovariant (PP-Q7K8K1HW0L) 2655 | -2/Testing | Spotted PP-Q7K8K1HW0L 2670 | -2/Testing | Found Prototype Device 2670 | -2/Testing | Identified Exp. Actuator Array 2673 | -2/Testing | Found Prototype Hackware 2673 | -2/Testing | Identified Exp. Hacking Suite 2713 | -2/Testing | Spotted Investigator 2714 | -2/Testing | Scanned by Researcher 2729 | -2/Testing | System corruption reached 10% 2766 | -2/Testing | Self-destructed Last Messages --------------- 02754_ Lgt. Antimatter Reactor+ destroyed. 02755_ Held in stasis. 02755_ Investigator is analyzing... 02757_ Xenon Bombardment Thruster+ destroyed. 02757_ Imp. Phase Shifter destroyed. 02758_ P-80 Master resets C-65 Expert, system corruption cleaned. 02758_ Held in stasis. 02758_ Investigator is analyzing... 02759_ W-44 Eye stasis bubble strength at 30. 02759_ M-36 Artificer repairs Investigator. 02760_ System corrupted: Component data lost. 02760_ Harmonic Fracturing Unit disabled. 02760_ W-44 Eye stasis bubble strength at 20. 02761_ M-36 Artificer repairs Investigator Imp. Linear Gravjet. 02761_ Investigator stasis bubble strength at 182. 02762_ Xenon Bombardment Thruster+ destroyed. 02763_ P-80 Master resets G-73 Enforcer, system corruption cleaned. 02765_ ALERT: Hostile activity reported, dispatching reinforcements to area. 02766_ Xenon Bombardment Thruster+ destroyed. Map ----- +----------------------------------------------------+ | ?????????????????????????????????????????????????? | | ?????????????????????????????????????????????????? | | ?????????????????????????????????????????????????? | | ?????????????????????????????????????????????????? | | ?????????????????????????????????????????????????? | | ?????????????????????????????????????????????????? | | ?????????????????????????????????????????????????? | | ?????????????????????????????????????????????????? | | ?????????????????????????????????????????????????? | | ?????????????????????????????????????????????????? | | ???###???????????????????????????????????????????? | | ####"#????###########????????????????????????????? | | = ######"## #????????????????????????????? | | + ##""" ! #????????????????????????????? | | """###### ##""" #????????????????????????????? | | ] """#????# ##""" ! #????????????????????????????? | | """#????# ## #????????????????????????????? | | #????# "# #????????????? ?????????????? | | ##+######## #####+###???????????? ??????????????? | | % #???????????? ???????????????? | | ################# #????######## ??????????????? | | ???????????????## ##???# ???????????????? | | ???????????????# #???# ???????????????? | | ???????????????# " #???# "???????????????? | | ???????????????# #???# """ ""#?????????????? | | ???????????????## ##???# @""" hhG??????????????? | | ????????????????# #????# """ h ""??????????????? | | ??????########### ######g """ ""#?????????????? | | ??? p"" #?????????????? | | ??? A pp #?????????????? | | ??? ] +?????????????? | | ???? ### #?????????????? | | ???? ######+######+########???####?????????????? | | ????????????????# #???????????????????????? | | ????????????????# """"" #???????????????????????? | | ????????????????# """"" #???????????????????????? | | ????????????????# """"" #???????????????????????? | | ????????????????# #???????????????????????? | | ????????????????# #???????????????????????? | | ????????????????#] ""T"" #???????????????????????? | | ????????????????# """"" #???????????????????????? | | ????????????????# #???????????????????????? | | ????????????????##########???????????????????????? | | ?????????????????????????????????????????????????? | | ?????????????????????????????????????????????????? | | ?????????????????????????????????????????????????? | | ?????????????????????????????????????????????????? | | ?????????????????????????????????????????????????? | | ?????????????????????????????????????????????????? | | ?????????????????????????????????????????????????? | +----------------------------------------------------+ Best States ------------- Heat Dissipation 68 Energy Generation 49 Energy Capacity 240 Matter Stores 300 Matter Capacity 300 Sight Range 18 Terrain Scan Range 16 Terrain Scan Density 1010 ECM Strength 1 Jamming Range 22 Power Amplification 30 Armor Coverage 300 Resistance: KI 20 Resistance: TH 20 Resistance: EX 20 Resistance: EM 35 Resistance: I 20 Resistance: S 20 Resistance: P 20 Melee Speed Boost 20 Phase Shifting 10 Evasion (%) 87 Melee Accuracy 16 Offensive Hacking 42 Defensive Hacking 12 Item Schematics ----------------- Core Analyzer | -7/Factory | Hacked Imp. Hacking Suite | -7/Factory | Hacked Katana | -6/Factory | Hacked Greatsword | -6/Factory | Hacked Lgt. Regenerative Plating | -2/Testing | Hacked Exp. Transmission Jammer | -2/Testing | Archive Prc. Matter Filter | -2/Testing | Archive Robot Schematics ------------------ C-65 Expert | -2/Testing | Archive Fabricated ------------ Greatsword | x2 | -6/Factory Imp. Hacking Suite | x1 | -4/Factory Repaired ---------- Greatsword | 23% | -3/Research Studied --------- Flight Unit | -9/Materials | Hacked Lgt. Assault Rifle | -9/Materials | Hacked Lgt. Nuclear Core | -8/Materials | Hacked Med. Laser | -8/Materials | Hacked Blade Saw | -7/Factory | Hacked Xenon Bombardment Thruster | -3/Research | Hacked Lgt. Antimatter Reactor | -3/Research | Hacked Field Propulsion Drive | -3/Research | Hacked Hvy. Rocket Launcher | -3/Research | Hacked VTOL Module | -3/Research | Hacked Greatsword | -2/Testing | Hacked Lgt. Quantum Reactor | -2/Testing | Hacked Alien Tech Used ----------------- None Achievements -------------- None Challenges ------------ None Game ------ Seed VampiricGyrokineticHumpback Manual? 0 Play Time 01:25:26 Cumulative 72.6 hours Start 2026.07.08 @ 18:39:45 End 2026.07.08 @ 23:21:58 Sessions 3 Manual Loads 0 Difficulty Adventurer Special Mode None Game No. 63 Rogue 0 Adventurer 63 Explorer 0 Win Type - Total 2 Types 1/0/0/1/0/0/0/0/0/0 Lore% 33 Gallery% 44 Achievement% 37 Wizard Run 0 Options --------- Layout 0 ASCII 0 Keyboard 0 Movement Mouse Keybinds 0 Fullscreen 0 Font 16/SmallcapsGlow Map View 76x50 Zoom Use 0% Tactical HUD 1 Map Filters NONE Filters NONE Steam 1 RUN: 910f19c3-637c-4658-86a3-a1920150980d